Workbook

Sheet Розрахунок Під депозит
N2: Калькулятор
N3: Кредит під заставу вкладу в Полікомбанку
G5: ячейки блакитногого кольору заповнюються Клієнтом виходячи з обраних умов кредитування
F6: Умови кредитування, обрані споживачем:
F7: Дата видачі кредиту: | M7: =TODAY() -> 2022-12-22 | AE7: =YEAR(M12) -> 2023 | AF7: =YEAR(M7) -> 2022 | AG7: =MONTH(M12) -> 12 | AH7: =MONTH(M7) -> 12
F8: Вартість предмету іпотеки, грн.: | M8: 0
F9: Валюта вкладу: | M9: гривня
F10: Сума кредиту*, грн.: | M10: 100000 | N10: *визначається залежно від валюти та суми вкладу
F11: Срок кредитування**, місяців | M11: 12 | N11: **не більший, ніж строк вкладу
F12: Кінцева дата повернення кредиту: | M12: =M7+((M11/12)*365) -> 2023-12-22 | AE12: =AE7-AF7 -> 1 | AG12: =AG7-AH7 -> 0
F13: Порядок погашення кредиту, грн.: | M13: щомісяця | N13: =CEILING((ROUND(IF(M13="щомісяця",H128,H127),1)),1) -> 8334 | O13: останній платіж | Q13: =M10-(N13*(M11-1)) -> 8326
F14: Дата погашення кредиту та процентів: | M14: щомісяця | N14: =DAY(M7) -> 22 | O14: числа | AG14: =12+AG12 -> 12
F15: Процентна ставка (фіксована)***, % річних: | M15: =IF(M9="гривня",M25,IF(M9="долар США",M26,IF(M9="євро",M27))) -> 0.155 | N15: ***визначається залежно від умов вкладу: валюти, процентної ставки, строку процентна ставка вказана для кредитів в заставу якого береться вклад розміщений з щомісячною виплатою відсотків | AG15: =24+AG12 -> 24
F16: Разова комісія за проведення розрахунків****: | M16: 0 | N16: ****для овердрафту – 2% річних, для кредитної лінії – 1,5% річних (від ліміту кредитування) | AF16: =IF(AE12=0,AG12,IF(AE12=1,AG14,IF(AE12=2,AG15,#REF!))) -> 12
F17: Щомісячна комісія за проведення розрахунків: | M17: 0 | N17: від суми наданого кредиту | Q17: =M10*M17 -> 0
F18: щорічна комісія за проведення розрахунків: | M18: 0 | N18: від суми наданого кредиту
F19: Послуги з внесення інформації до Державного реєстру обтяжень рухомого майна | M19: 150 | N19: грн.
F20: послуги оцінювача | M20: 0 | N20: грн.
F21: Послуги страховика (один раз на рік) | M21: 0
F22: державне мито | M22: 0 | N22: від вартості предмету іпотеки
F23: пенсійний збір | M23: 0 | N23: від вартості предмету іпотеки
K25: процентна ставка | L25: гривня | M25: 0.155
L26: долар США | M26: 0.1597
L27: євро | M27: 0.1597
X29: Дата розрахунку: | Y29: =TEXT(M7,"DD.MM.YYYY")&" р." -> DD.MM.YYYY р.
F30: ТАБЛИЦЯ обчислення загальної вартості кредиту для споживача та реальної річної процентної ставки за договором про споживчий кредит
F32: № з/п | G32: Дата видачі кредиту/ дата платежу | H32: Кількість днів у розрахун- ковому періоді | K32: Чиста сума кредиту/ сума платежу за розрахунковий період, грн. | L32: Види платежів за кредитом | X32: Реальна річна процентна ставка, % | Y32: Загальна вартість кредиту, грн
L33: сума кредиту за договором | M33: проценти за користування кредитом | N33: платежі за додаткові та супутні послуги
N34: банку | R34: кредитного посередника (за наявності) | T34: третіх осіб
A35: фільтр | N35: щомісячна комісія за проведення розрахунків | O35: розрахунково-касове обслуговування | P35: комісія за видачу готівкових коштів | Q35: інші послуги банку | R35: комісійний збір | S35: інша плата за послуги кредитного посередника | T35: послуги нотаріуса | U35: послуги оцінювача | V35: послуги страховика | W35: інші послуги третіх осіб
F36: 1 | G36: 2 | H36: 3 | I36: 4 | J36: 5 | K36: 4 | L36: 5 | M36: 6 | N36: 7 | O36: 8 | P36: 9 | Q36: 10 | R36: 11 | S36: 12 | T36: 13 | U36: 14 | V36: 15 | W36: 16 | X36: 17 | Y36: 18
A37: =IF(B37<=$M$12,1,0) -> 1 | F37: 1 | G37: =M7 -> 2022-12-22 | H37: х | K37: =SUM(L37:W37) -> -99850 | L37: =-M10 -> -100000 | M37: х | P37: =IF(M16=0,0,IF((M10*M16)<500,500,IF((M10*M16)>5000,5000,M10*M16))) -> 0 | Q37: =M10*M18 -> 0 | T37: 0 | U37: =M20 -> 0 | V37: =M10*M21 -> 0 | W37: =M19 -> 150 | X37: х | Y37: х
A38: 0 | G38: =EOMONTH(M7,0) -> 2022-12-31 | H38: =IF(A38=1,G38-G37,0) -> 0 | K38: =SUM(L38:Q38) -> 0
A39: =IF(B39<=$M$11,1,0) -> 1 | B39: 1 | F39: =F37+1 -> 2 | G39: =MIN(DATE(YEAR(G37),MONTH(G37)+1,DAY($N$14)),$M$12) -> 2023-01-22 | H39: =G39-G37 -> 31 | I39: =EOMONTH(G37,0)-G37 -> 9 | J39: =G39-EOMONTH(G37,0) -> 22 | K39: =SUM(L39:W39) -> 9650.44 | L39: =N13 -> 8334 | M39: =ROUND($M$10*(($M$15/(IF(ROUND(YEAR(G37)/4,0)-YEAR(G37)/4=0,366,365)))*I39)+$M$10*(($M$15/(IF(ROUND(YEAR(G39)/4,0)-YEAR(G39)/4=0,366,365)))*J39),2) -> 1316.44 | N39: =IF(A39=1,IF(AND(YEAR($M$12)=YEAR(EDATE(G38,1)),MONTH($M$12)=MONTH(EDATE(G38,1))),$Q$17-$Q$42,$Q$17),0) -> 0 | X39: х | Y39: х
A40: 1 | B40: =B39+1 -> 2 | F40: 3 | G40: =IF(AND(YEAR($M$12)=YEAR(EDATE(G39,1)),MONTH($M$12)=MONTH(EDATE(G39,1))),$M$12,EDATE(G39,1)) -> 2023-02-22 | H40: =IF(A40=1,G40-G39,0) -> 31 | I40: =EOMONTH(G39,0)-G39 -> 9 | J40: =G40-EOMONTH(G39,0) -> 22 | K40: =SUM(L40:W40) -> 9540.73 | L40: =IF(B40<$M$11,$N$13,-$L$37-SUM($L$39:L39)) -> 8334 | M40: =ROUND(($M$10-SUM($L$39:L39))*(($M$15/(IF(ROUND(YEAR(G39)/4,0)-YEAR(G39)/4=0,366,365)))*I40)+($M$10-SUM($L$39:L39))*(($M$15/(IF(ROUND(YEAR(G40)/4,0)-YEAR(G40)/4=0,366,365)))*J40),2) -> 1206.73 | N40: 0 | X40: х | Y40: х
A41: 1 | B41: 3 | F41: 4 | G41: =IF(AND(YEAR($M$12)=YEAR(EDATE(G40,1)),MONTH($M$12)=MONTH(EDATE(G40,1))),$M$12,EDATE(G40,1)) -> 2023-03-22 | H41: 28 | I41: =EOMONTH(G40,0)-G40 -> 6 | J41: =G41-EOMONTH(G40,0) -> 22 | K41: 9324.85 | L41: =IF(B41<$M$11,$N$13,-$L$37-SUM($L$39:L40)) -> 8334 | M41: =ROUND(($M$10-SUM($L$39:L40))*(($M$15/(IF(ROUND(YEAR(G40)/4,0)-YEAR(G40)/4=0,366,365)))*I41)+($M$10-SUM($L$39:L40))*(($M$15/(IF(ROUND(YEAR(G41)/4,0)-YEAR(G41)/4=0,366,365)))*J41),2) -> 990.85 | N41: 0 | X41: х | Y41: х
A42: 1 | B42: 4 | F42: 5 | G42: 2023-04-22 | H42: 31 | I42: 9 | J42: 22 | K42: 9321.3 | L42: =IF(B42<$M$11,$N$13,-$L$37-SUM($L$39:L41)) -> 8334 | M42: =ROUND(($M$10-SUM($L$39:L41))*(($M$15/(IF(ROUND(YEAR(G41)/4,0)-YEAR(G41)/4=0,366,365)))*I42)+($M$10-SUM($L$39:L41))*(($M$15/(IF(ROUND(YEAR(G42)/4,0)-YEAR(G42)/4=0,366,365)))*J42),2) -> 987.3 | N42: 0 | X42: х | Y42: х
A43: 1 | B43: 5 | F43: 6 | G43: 2023-05-22 | H43: 30 | I43: 8 | J43: 22 | K43: 9183.28 | L43: =IF(B43<$M$11,$N$13,-$L$37-SUM($L$39:L42)) -> 8334 | M43: =ROUND(($M$10-SUM($L$39:L42))*(($M$15/(IF(ROUND(YEAR(G42)/4,0)-YEAR(G42)/4=0,366,365)))*I43)+($M$10-SUM($L$39:L42))*(($M$15/(IF(ROUND(YEAR(G43)/4,0)-YEAR(G43)/4=0,366,365)))*J43),2) -> 849.28 | N43: 0 | X43: х | Y43: х
A44: 1 | B44: 6 | F44: 7 | G44: 2023-06-22 | H44: 31 | I44: 9 | J44: 22 | K44: 9101.88 | L44: =IF(B44<$M$11,$N$13,-$L$37-SUM($L$39:L43)) -> 8334 | M44: =ROUND(($M$10-SUM($L$39:L43))*(($M$15/(IF(ROUND(YEAR(G43)/4,0)-YEAR(G43)/4=0,366,365)))*I44)+($M$10-SUM($L$39:L43))*(($M$15/(IF(ROUND(YEAR(G44)/4,0)-YEAR(G44)/4=0,366,365)))*J44),2) -> 767.88 | N44: 0 | X44: х | Y44: х
A45: 1 | B45: 7 | F45: 8 | G45: 2023-07-22 | H45: 30 | I45: 8 | J45: 22 | K45: 8970.94 | L45: =IF(B45<$M$11,$N$13,-$L$37-SUM($L$39:L44)) -> 8334 | M45: =ROUND(($M$10-SUM($L$39:L44))*(($M$15/(IF(ROUND(YEAR(G44)/4,0)-YEAR(G44)/4=0,366,365)))*I45)+($M$10-SUM($L$39:L44))*(($M$15/(IF(ROUND(YEAR(G45)/4,0)-YEAR(G45)/4=0,366,365)))*J45),2) -> 636.94 | N45: 0 | X45: х | Y45: х
A46: 1 | B46: 8 | F46: 9 | G46: 2023-08-22 | H46: 31 | I46: 9 | J46: 22 | K46: 8882.45 | L46: =IF(B46<$M$11,$N$13,-$L$37-SUM($L$39:L45)) -> 8334 | M46: =ROUND(($M$10-SUM($L$39:L45))*(($M$15/(IF(ROUND(YEAR(G45)/4,0)-YEAR(G45)/4=0,366,365)))*I46)+($M$10-SUM($L$39:L45))*(($M$15/(IF(ROUND(YEAR(G46)/4,0)-YEAR(G46)/4=0,366,365)))*J46),2) -> 548.45 | N46: 0 | X46: х | Y46: х
A47: 1 | B47: 9 | F47: 10 | G47: 2023-09-22 | H47: 31 | I47: 9 | J47: 22 | K47: 8772.74 | L47: =IF(B47<$M$11,$N$13,-$L$37-SUM($L$39:L46)) -> 8334 | M47: =ROUND(($M$10-SUM($L$39:L46))*(($M$15/(IF(ROUND(YEAR(G46)/4,0)-YEAR(G46)/4=0,366,365)))*I47)+($M$10-SUM($L$39:L46))*(($M$15/(IF(ROUND(YEAR(G47)/4,0)-YEAR(G47)/4=0,366,365)))*J47),2) -> 438.74 | N47: 0 | X47: х | Y47: х
A48: 1 | B48: 10 | F48: 11 | G48: 2023-10-22 | H48: 30 | I48: 8 | J48: 22 | K48: 8652.42 | L48: =IF(B48<$M$11,$N$13,-$L$37-SUM($L$39:L47)) -> 8334 | M48: =ROUND(($M$10-SUM($L$39:L47))*(($M$15/(IF(ROUND(YEAR(G47)/4,0)-YEAR(G47)/4=0,366,365)))*I48)+($M$10-SUM($L$39:L47))*(($M$15/(IF(ROUND(YEAR(G48)/4,0)-YEAR(G48)/4=0,366,365)))*J48),2) -> 318.42 | N48: 0 | X48: х | Y48: х
A49: 1 | B49: 11 | F49: 12 | G49: 2023-11-22 | H49: 31 | I49: 9 | J49: 22 | K49: 8553.32 | L49: =IF(B49<$M$11,$N$13,-$L$37-SUM($L$39:L48)) -> 8334 | M49: =ROUND(($M$10-SUM($L$39:L48))*(($M$15/(IF(ROUND(YEAR(G48)/4,0)-YEAR(G48)/4=0,366,365)))*I49)+($M$10-SUM($L$39:L48))*(($M$15/(IF(ROUND(YEAR(G49)/4,0)-YEAR(G49)/4=0,366,365)))*J49),2) -> 219.32 | N49: 0 | X49: х | Y49: х
A50: 1 | B50: 12 | F50: 13 | G50: 2023-12-22 | H50: 30 | I50: 8 | J50: 22 | K50: =SUM(L50:W50) -> 8432.07 | L50: =IF(B50<$M$11,$N$13,-$L$37-SUM($L$39:L49)) -> 8326 | M50: =ROUND(($M$10-SUM($L$39:L49))*(($M$15/(IF(ROUND(YEAR(G49)/4,0)-YEAR(G49)/4=0,366,365)))*I50)+($M$10-SUM($L$39:L49))*(($M$15/(IF(ROUND(YEAR(G50)/4,0)-YEAR(G50)/4=0,366,365)))*J50),2) -> 106.07 | N50: 0 | Q50: =IF(B50<$M$11,$M$10*$M$18,0) -> 0 | V50: =IF(B50<$M$11,$M$10*$M$21,0) -> 0 | X50: х | Y50: х
A51: 0 | B51: 13 | F51: 14 | G51: 2024-01-22 | H51: 0 | I51: 9 | J51: 22 | K51: =SUM(L51:W51) -> 0 | L51: =IF(B51<$M$11,$N$13,-$L$37-SUM($L$39:L50)) -> 0 | M51: =ROUND(($M$10-SUM($L$39:L50))*(($M$15/(IF(ROUND(YEAR(G50)/4,0)-YEAR(G50)/4=0,366,365)))*I51)+($M$10-SUM($L$39:L50))*(($M$15/(IF(ROUND(YEAR(G51)/4,0)-YEAR(G51)/4=0,366,365)))*J51),2) -> 0 | N51: 0 | X51: х | Y51: х
A52: 0 | B52: 14 | F52: 15 | G52: 2024-02-22 | H52: 0 | I52: 9 | J52: 22 | K52: 0 | L52: =IF(B52<$M$11,$N$13,-$L$37-SUM($L$39:L51)) -> 0 | M52: =ROUND(($M$10-SUM($L$39:L51))*(($M$15/(IF(ROUND(YEAR(G51)/4,0)-YEAR(G51)/4=0,366,365)))*I52)+($M$10-SUM($L$39:L51))*(($M$15/(IF(ROUND(YEAR(G52)/4,0)-YEAR(G52)/4=0,366,365)))*J52),2) -> 0 | N52: 0 | X52: х | Y52: х
A53: 0 | B53: 15 | F53: 16 | G53: 2024-03-22 | H53: 0 | I53: 7 | J53: 22 | K53: 0 | L53: =IF(B53<$M$11,$N$13,-$L$37-SUM($L$39:L52)) -> 0 | M53: =ROUND(($M$10-SUM($L$39:L52))*(($M$15/(IF(ROUND(YEAR(G52)/4,0)-YEAR(G52)/4=0,366,365)))*I53)+($M$10-SUM($L$39:L52))*(($M$15/(IF(ROUND(YEAR(G53)/4,0)-YEAR(G53)/4=0,366,365)))*J53),2) -> 0 | N53: 0 | X53: х | Y53: х
A54: 0 | B54: 16 | F54: 17 | G54: 2024-04-22 | H54: 0 | I54: 9 | J54: 22 | K54: 0 | L54: =IF(B54<$M$11,$N$13,-$L$37-SUM($L$39:L53)) -> 0 | M54: =ROUND(($M$10-SUM($L$39:L53))*(($M$15/(IF(ROUND(YEAR(G53)/4,0)-YEAR(G53)/4=0,366,365)))*I54)+($M$10-SUM($L$39:L53))*(($M$15/(IF(ROUND(YEAR(G54)/4,0)-YEAR(G54)/4=0,366,365)))*J54),2) -> 0 | N54: 0 | X54: х | Y54: х
A55: 0 | B55: 17 | F55: 18 | G55: 2024-05-22 | H55: 0 | I55: 8 | J55: 22 | K55: 0 | L55: =IF(B55<$M$11,$N$13,-$L$37-SUM($L$39:L54)) -> 0 | M55: =ROUND(($M$10-SUM($L$39:L54))*(($M$15/(IF(ROUND(YEAR(G54)/4,0)-YEAR(G54)/4=0,366,365)))*I55)+($M$10-SUM($L$39:L54))*(($M$15/(IF(ROUND(YEAR(G55)/4,0)-YEAR(G55)/4=0,366,365)))*J55),2) -> 0 | N55: 0 | X55: х | Y55: х
A56: 0 | B56: =B55+1 -> 18 | F56: 19 | G56: 2024-06-22 | H56: 0 | I56: 9 | J56: 22 | K56: 0 | L56: =IF(B56<$M$11,$N$13,-$L$37-SUM($L$39:L55)) -> 0 | M56: =ROUND(($M$10-SUM($L$39:L55))*(($M$15/(IF(ROUND(YEAR(G55)/4,0)-YEAR(G55)/4=0,366,365)))*I56)+($M$10-SUM($L$39:L55))*(($M$15/(IF(ROUND(YEAR(G56)/4,0)-YEAR(G56)/4=0,366,365)))*J56),2) -> 0 | N56: 0 | X56: х | Y56: х
A57: 0 | B57: 19 | F57: 20 | G57: 2024-07-22 | H57: 0 | I57: 8 | J57: 22 | K57: 0 | L57: =IF(B57<$M$11,$N$13,-$L$37-SUM($L$39:L56)) -> 0 | M57: =ROUND(($M$10-SUM($L$39:L56))*(($M$15/(IF(ROUND(YEAR(G56)/4,0)-YEAR(G56)/4=0,366,365)))*I57)+($M$10-SUM($L$39:L56))*(($M$15/(IF(ROUND(YEAR(G57)/4,0)-YEAR(G57)/4=0,366,365)))*J57),2) -> 0 | N57: 0 | X57: х | Y57: х
A58: 0 | B58: 20 | F58: 21 | G58: 2024-08-22 | H58: 0 | I58: 9 | J58: 22 | K58: 0 | L58: =IF(B58<$M$11,$N$13,-$L$37-SUM($L$39:L57)) -> 0 | M58: =ROUND(($M$10-SUM($L$39:L57))*(($M$15/(IF(ROUND(YEAR(G57)/4,0)-YEAR(G57)/4=0,366,365)))*I58)+($M$10-SUM($L$39:L57))*(($M$15/(IF(ROUND(YEAR(G58)/4,0)-YEAR(G58)/4=0,366,365)))*J58),2) -> 0 | N58: 0 | X58: х | Y58: х
A59: 0 | B59: 21 | F59: 22 | G59: 2024-09-22 | H59: 0 | I59: 9 | J59: 22 | K59: 0 | L59: =IF(B59<$M$11,$N$13,-$L$37-SUM($L$39:L58)) -> 0 | M59: =ROUND(($M$10-SUM($L$39:L58))*(($M$15/(IF(ROUND(YEAR(G58)/4,0)-YEAR(G58)/4=0,366,365)))*I59)+($M$10-SUM($L$39:L58))*(($M$15/(IF(ROUND(YEAR(G59)/4,0)-YEAR(G59)/4=0,366,365)))*J59),2) -> 0 | N59: 0 | X59: х | Y59: х
A60: 0 | B60: 22 | F60: 23 | G60: 2024-10-22 | H60: 0 | I60: 8 | J60: 22 | K60: 0 | L60: =IF(B60<$M$11,$N$13,-$L$37-SUM($L$39:L59)) -> 0 | M60: =ROUND(($M$10-SUM($L$39:L59))*(($M$15/(IF(ROUND(YEAR(G59)/4,0)-YEAR(G59)/4=0,366,365)))*I60)+($M$10-SUM($L$39:L59))*(($M$15/(IF(ROUND(YEAR(G60)/4,0)-YEAR(G60)/4=0,366,365)))*J60),2) -> 0 | N60: 0 | X60: х | Y60: х
A61: 0 | B61: 23 | F61: 24 | G61: 2024-11-22 | H61: 0 | I61: 9 | J61: 22 | K61: 0 | L61: =IF(B61<$M$11,$N$13,-$L$37-SUM($L$39:L60)) -> 0 | M61: =ROUND(($M$10-SUM($L$39:L60))*(($M$15/(IF(ROUND(YEAR(G60)/4,0)-YEAR(G60)/4=0,366,365)))*I61)+($M$10-SUM($L$39:L60))*(($M$15/(IF(ROUND(YEAR(G61)/4,0)-YEAR(G61)/4=0,366,365)))*J61),2) -> 0 | N61: 0 | X61: х | Y61: х
A62: 0 | B62: 24 | F62: 25 | G62: 2024-12-22 | H62: 0 | I62: 8 | J62: 22 | K62: =SUM(L62:W62) -> 0 | L62: =IF(B62<$M$11,$N$13,-$L$37-SUM($L$39:L61)) -> 0 | M62: =ROUND(($M$10-SUM($L$39:L61))*(($M$15/(IF(ROUND(YEAR(G61)/4,0)-YEAR(G61)/4=0,366,365)))*I62)+($M$10-SUM($L$39:L61))*(($M$15/(IF(ROUND(YEAR(G62)/4,0)-YEAR(G62)/4=0,366,365)))*J62),2) -> 0 | N62: 0 | P62: 0 | Q62: =IF(B62<$M$11,$M$10*$M$18,0) -> 0 | V62: =IF(B62<$M$11,$M$10*$M$21,0) -> 0 | X62: х | Y62: х
A63: 0 | B63: 25 | F63: 26 | G63: 2025-01-22 | H63: 0 | I63: 9 | J63: 22 | K63: 0 | L63: =IF(B63<$M$11,$N$13,-$L$37-SUM($L$39:L62)) -> 0 | M63: =ROUND(($M$10-SUM($L$39:L62))*(($M$15/(IF(ROUND(YEAR(G62)/4,0)-YEAR(G62)/4=0,366,365)))*I63)+($M$10-SUM($L$39:L62))*(($M$15/(IF(ROUND(YEAR(G63)/4,0)-YEAR(G63)/4=0,366,365)))*J63),2) -> 0 | N63: 0 | X63: х | Y63: х
A64: 0 | B64: 26 | F64: 27 | G64: 2025-02-22 | H64: 0 | I64: 9 | J64: 22 | K64: 0 | L64: =IF(B64<$M$11,$N$13,-$L$37-SUM($L$39:L63)) -> 0 | M64: =ROUND(($M$10-SUM($L$39:L63))*(($M$15/(IF(ROUND(YEAR(G63)/4,0)-YEAR(G63)/4=0,366,365)))*I64)+($M$10-SUM($L$39:L63))*(($M$15/(IF(ROUND(YEAR(G64)/4,0)-YEAR(G64)/4=0,366,365)))*J64),2) -> 0 | N64: 0 | X64: х | Y64: х
A65: 0 | B65: 27 | F65: 28 | G65: 2025-03-22 | H65: 0 | I65: 6 | J65: 22 | K65: 0 | L65: =IF(B65<$M$11,$N$13,-$L$37-SUM($L$39:L64)) -> 0 | M65: =ROUND(($M$10-SUM($L$39:L64))*(($M$15/(IF(ROUND(YEAR(G64)/4,0)-YEAR(G64)/4=0,366,365)))*I65)+($M$10-SUM($L$39:L64))*(($M$15/(IF(ROUND(YEAR(G65)/4,0)-YEAR(G65)/4=0,366,365)))*J65),2) -> 0 | N65: 0 | X65: х | Y65: х
A66: 0 | B66: 28 | F66: 29 | G66: 2025-04-22 | H66: 0 | I66: 9 | J66: 22 | K66: 0 | L66: =IF(B66<$M$11,$N$13,-$L$37-SUM($L$39:L65)) -> 0 | M66: =ROUND(($M$10-SUM($L$39:L65))*(($M$15/(IF(ROUND(YEAR(G65)/4,0)-YEAR(G65)/4=0,366,365)))*I66)+($M$10-SUM($L$39:L65))*(($M$15/(IF(ROUND(YEAR(G66)/4,0)-YEAR(G66)/4=0,366,365)))*J66),2) -> 0 | N66: 0 | X66: х | Y66: х
A67: 0 | B67: 29 | F67: 30 | G67: 2025-05-22 | H67: 0 | I67: 8 | J67: 22 | K67: 0 | L67: =IF(B67<$M$11,$N$13,-$L$37-SUM($L$39:L66)) -> 0 | M67: =ROUND(($M$10-SUM($L$39:L66))*(($M$15/(IF(ROUND(YEAR(G66)/4,0)-YEAR(G66)/4=0,366,365)))*I67)+($M$10-SUM($L$39:L66))*(($M$15/(IF(ROUND(YEAR(G67)/4,0)-YEAR(G67)/4=0,366,365)))*J67),2) -> 0 | N67: 0 | X67: х | Y67: х
A68: 0 | B68: 30 | F68: 31 | G68: 2025-06-22 | H68: 0 | I68: 9 | J68: 22 | K68: 0 | L68: =IF(B68<$M$11,$N$13,-$L$37-SUM($L$39:L67)) -> 0 | M68: =ROUND(($M$10-SUM($L$39:L67))*(($M$15/(IF(ROUND(YEAR(G67)/4,0)-YEAR(G67)/4=0,366,365)))*I68)+($M$10-SUM($L$39:L67))*(($M$15/(IF(ROUND(YEAR(G68)/4,0)-YEAR(G68)/4=0,366,365)))*J68),2) -> 0 | N68: 0 | X68: х | Y68: х
A69: 0 | B69: 31 | F69: 32 | G69: 2025-07-22 | H69: 0 | I69: 8 | J69: 22 | K69: 0 | L69: =IF(B69<$M$11,$N$13,-$L$37-SUM($L$39:L68)) -> 0 | M69: =ROUND(($M$10-SUM($L$39:L68))*(($M$15/(IF(ROUND(YEAR(G68)/4,0)-YEAR(G68)/4=0,366,365)))*I69)+($M$10-SUM($L$39:L68))*(($M$15/(IF(ROUND(YEAR(G69)/4,0)-YEAR(G69)/4=0,366,365)))*J69),2) -> 0 | N69: 0 | X69: х | Y69: х
A70: 0 | B70: 32 | F70: 33 | G70: 2025-08-22 | H70: 0 | I70: 9 | J70: 22 | K70: 0 | L70: =IF(B70<$M$11,$N$13,-$L$37-SUM($L$39:L69)) -> 0 | M70: =ROUND(($M$10-SUM($L$39:L69))*(($M$15/(IF(ROUND(YEAR(G69)/4,0)-YEAR(G69)/4=0,366,365)))*I70)+($M$10-SUM($L$39:L69))*(($M$15/(IF(ROUND(YEAR(G70)/4,0)-YEAR(G70)/4=0,366,365)))*J70),2) -> 0 | N70: 0 | X70: х | Y70: х
A71: =IF(B71<=$M$11,1,0) -> 0 | B71: 33 | F71: 34 | G71: 2025-09-22 | H71: 0 | I71: 9 | J71: 22 | K71: 0 | L71: =IF(B71<$M$11,$N$13,-$L$37-SUM($L$39:L70)) -> 0 | M71: =ROUND(($M$10-SUM($L$39:L70))*(($M$15/(IF(ROUND(YEAR(G70)/4,0)-YEAR(G70)/4=0,366,365)))*I71)+($M$10-SUM($L$39:L70))*(($M$15/(IF(ROUND(YEAR(G71)/4,0)-YEAR(G71)/4=0,366,365)))*J71),2) -> 0 | N71: =IF(A71=1,IF(AND(YEAR($M$12)=YEAR(EDATE(G70,1)),MONTH($M$12)=MONTH(EDATE(G70,1))),$Q$17-$Q$42,$Q$17),0) -> 0 | X71: х | Y71: х
A72: 0 | B72: =B71+1 -> 34 | F72: 35 | G72: 2025-10-22 | H72: =IF(A72=1,G72-G71,0) -> 0 | I72: 8 | J72: 22 | K72: 0 | L72: =IF(B72<$M$11,$N$13,-$L$37-SUM($L$39:L71)) -> 0 | M72: =ROUND(($M$10-SUM($L$39:L71))*(($M$15/(IF(ROUND(YEAR(G71)/4,0)-YEAR(G71)/4=0,366,365)))*I72)+($M$10-SUM($L$39:L71))*(($M$15/(IF(ROUND(YEAR(G72)/4,0)-YEAR(G72)/4=0,366,365)))*J72),2) -> 0 | N72: 0 | X72: х | Y72: х
A73: 0 | B73: 35 | F73: 36 | G73: 2025-11-22 | H73: 0 | I73: 9 | J73: 22 | K73: 0 | L73: =IF(B73<$M$11,$N$13,-$L$37-SUM($L$39:L72)) -> 0 | M73: =ROUND(($M$10-SUM($L$39:L72))*(($M$15/(IF(ROUND(YEAR(G72)/4,0)-YEAR(G72)/4=0,366,365)))*I73)+($M$10-SUM($L$39:L72))*(($M$15/(IF(ROUND(YEAR(G73)/4,0)-YEAR(G73)/4=0,366,365)))*J73),2) -> 0 | N73: 0 | X73: х | Y73: х
A74: 0 | B74: 36 | F74: 37 | G74: 2025-12-22 | H74: 0 | I74: 8 | J74: 22 | K74: 0 | L74: =IF(B74<$M$11,$N$13,-$L$37-SUM($L$39:L73)) -> 0 | M74: =ROUND(($M$10-SUM($L$39:L73))*(($M$15/(IF(ROUND(YEAR(G73)/4,0)-YEAR(G73)/4=0,366,365)))*I74)+($M$10-SUM($L$39:L73))*(($M$15/(IF(ROUND(YEAR(G74)/4,0)-YEAR(G74)/4=0,366,365)))*J74),2) -> 0 | N74: 0 | Q74: =IF(B74<$M$11,$M$10*$M$18,0) -> 0 | V74: =IF(B74<$M$11,$M$10*$M$21,0) -> 0 | X74: х | Y74: х
A75: 0 | B75: 37 | F75: 38 | G75: 2026-01-22 | H75: 0 | I75: =EOMONTH(G74,0)-G74 -> 9 | J75: =G75-EOMONTH(G74,0) -> 22 | K75: 0 | L75: =IF(B75<$M$11,$N$13,-$L$37-SUM($L$39:L74)) -> 0 | M75: =ROUND(($M$10-SUM($L$39:L74))*(($M$15/(IF(ROUND(YEAR(G74)/4,0)-YEAR(G74)/4=0,366,365)))*I75)+($M$10-SUM($L$39:L74))*(($M$15/(IF(ROUND(YEAR(G75)/4,0)-YEAR(G75)/4=0,366,365)))*J75),2) -> 0 | N75: 0 | X75: х | Y75: х
A76: 0 | B76: 38 | F76: 39 | G76: 2026-02-22 | H76: 0 | I76: 9 | J76: 22 | K76: 0 | L76: =IF(B76<$M$11,$N$13,-$L$37-SUM($L$39:L75)) -> 0 | M76: =ROUND(($M$10-SUM($L$39:L75))*(($M$15/(IF(ROUND(YEAR(G75)/4,0)-YEAR(G75)/4=0,366,365)))*I76)+($M$10-SUM($L$39:L75))*(($M$15/(IF(ROUND(YEAR(G76)/4,0)-YEAR(G76)/4=0,366,365)))*J76),2) -> 0 | N76: 0 | X76: х | Y76: х
A77: 0 | B77: 39 | F77: 40 | G77: 2026-03-22 | H77: 0 | I77: 6 | J77: 22 | K77: 0 | L77: =IF(B77<$M$11,$N$13,-$L$37-SUM($L$39:L76)) -> 0 | M77: =ROUND(($M$10-SUM($L$39:L76))*(($M$15/(IF(ROUND(YEAR(G76)/4,0)-YEAR(G76)/4=0,366,365)))*I77)+($M$10-SUM($L$39:L76))*(($M$15/(IF(ROUND(YEAR(G77)/4,0)-YEAR(G77)/4=0,366,365)))*J77),2) -> 0 | N77: 0 | X77: х | Y77: х
A78: 0 | B78: 40 | F78: 41 | G78: 2026-04-22 | H78: 0 | I78: 9 | J78: 22 | K78: 0 | L78: =IF(B78<$M$11,$N$13,-$L$37-SUM($L$39:L77)) -> 0 | M78: =ROUND(($M$10-SUM($L$39:L77))*(($M$15/(IF(ROUND(YEAR(G77)/4,0)-YEAR(G77)/4=0,366,365)))*I78)+($M$10-SUM($L$39:L77))*(($M$15/(IF(ROUND(YEAR(G78)/4,0)-YEAR(G78)/4=0,366,365)))*J78),2) -> 0 | N78: 0 | X78: х | Y78: х
A79: 0 | B79: 41 | F79: 42 | G79: 2026-05-22 | H79: 0 | I79: 8 | J79: 22 | K79: 0 | L79: =IF(B79<$M$11,$N$13,-$L$37-SUM($L$39:L78)) -> 0 | M79: =ROUND(($M$10-SUM($L$39:L78))*(($M$15/(IF(ROUND(YEAR(G78)/4,0)-YEAR(G78)/4=0,366,365)))*I79)+($M$10-SUM($L$39:L78))*(($M$15/(IF(ROUND(YEAR(G79)/4,0)-YEAR(G79)/4=0,366,365)))*J79),2) -> 0 | N79: 0 | X79: х | Y79: х
A80: 0 | B80: 42 | F80: 43 | G80: 2026-06-22 | H80: 0 | I80: 9 | J80: 22 | K80: 0 | L80: =IF(B80<$M$11,$N$13,-$L$37-SUM($L$39:L79)) -> 0 | M80: =ROUND(($M$10-SUM($L$39:L79))*(($M$15/(IF(ROUND(YEAR(G79)/4,0)-YEAR(G79)/4=0,366,365)))*I80)+($M$10-SUM($L$39:L79))*(($M$15/(IF(ROUND(YEAR(G80)/4,0)-YEAR(G80)/4=0,366,365)))*J80),2) -> 0 | N80: 0 | X80: х | Y80: х
A81: 0 | B81: 43 | F81: 44 | G81: 2026-07-22 | H81: 0 | I81: 8 | J81: 22 | K81: 0 | L81: =IF(B81<$M$11,$N$13,-$L$37-SUM($L$39:L80)) -> 0 | M81: =ROUND(($M$10-SUM($L$39:L80))*(($M$15/(IF(ROUND(YEAR(G80)/4,0)-YEAR(G80)/4=0,366,365)))*I81)+($M$10-SUM($L$39:L80))*(($M$15/(IF(ROUND(YEAR(G81)/4,0)-YEAR(G81)/4=0,366,365)))*J81),2) -> 0 | N81: 0 | X81: х | Y81: х
A82: 0 | B82: 44 | F82: 45 | G82: 2026-08-22 | H82: 0 | I82: 9 | J82: 22 | K82: 0 | L82: =IF(B82<$M$11,$N$13,-$L$37-SUM($L$39:L81)) -> 0 | M82: =ROUND(($M$10-SUM($L$39:L81))*(($M$15/(IF(ROUND(YEAR(G81)/4,0)-YEAR(G81)/4=0,366,365)))*I82)+($M$10-SUM($L$39:L81))*(($M$15/(IF(ROUND(YEAR(G82)/4,0)-YEAR(G82)/4=0,366,365)))*J82),2) -> 0 | N82: 0 | X82: х | Y82: х
A83: 0 | B83: 45 | F83: 46 | G83: 2026-09-22 | H83: 0 | I83: 9 | J83: 22 | K83: 0 | L83: =IF(B83<$M$11,$N$13,-$L$37-SUM($L$39:L82)) -> 0 | M83: =ROUND(($M$10-SUM($L$39:L82))*(($M$15/(IF(ROUND(YEAR(G82)/4,0)-YEAR(G82)/4=0,366,365)))*I83)+($M$10-SUM($L$39:L82))*(($M$15/(IF(ROUND(YEAR(G83)/4,0)-YEAR(G83)/4=0,366,365)))*J83),2) -> 0 | N83: 0 | X83: х | Y83: х
A84: 0 | B84: 46 | F84: 47 | G84: 2026-10-22 | H84: 0 | I84: 8 | J84: 22 | K84: 0 | L84: =IF(B84<$M$11,$N$13,-$L$37-SUM($L$39:L83)) -> 0 | M84: =ROUND(($M$10-SUM($L$39:L83))*(($M$15/(IF(ROUND(YEAR(G83)/4,0)-YEAR(G83)/4=0,366,365)))*I84)+($M$10-SUM($L$39:L83))*(($M$15/(IF(ROUND(YEAR(G84)/4,0)-YEAR(G84)/4=0,366,365)))*J84),2) -> 0 | N84: 0 | X84: х | Y84: х
A85: 0 | B85: 47 | F85: 48 | G85: 2026-11-22 | H85: 0 | I85: 9 | J85: 22 | K85: 0 | L85: =IF(B85<$M$11,$N$13,-$L$37-SUM($L$39:L84)) -> 0 | M85: =ROUND(($M$10-SUM($L$39:L84))*(($M$15/(IF(ROUND(YEAR(G84)/4,0)-YEAR(G84)/4=0,366,365)))*I85)+($M$10-SUM($L$39:L84))*(($M$15/(IF(ROUND(YEAR(G85)/4,0)-YEAR(G85)/4=0,366,365)))*J85),2) -> 0 | N85: 0 | X85: х | Y85: х
A86: 0 | B86: 48 | F86: 49 | G86: 2026-12-22 | H86: 0 | I86: 8 | J86: 22 | K86: 0 | L86: =IF(B86<$M$11,$N$13,-$L$37-SUM($L$39:L85)) -> 0 | M86: =ROUND(($M$10-SUM($L$39:L85))*(($M$15/(IF(ROUND(YEAR(G85)/4,0)-YEAR(G85)/4=0,366,365)))*I86)+($M$10-SUM($L$39:L85))*(($M$15/(IF(ROUND(YEAR(G86)/4,0)-YEAR(G86)/4=0,366,365)))*J86),2) -> 0 | N86: 0 | Q86: =IF(B86<$M$11,$M$10*$M$18,0) -> 0 | V86: =IF(B86<$M$11,$M$8*$M$21,0) -> 0 | X86: х | Y86: х
A87: 0 | B87: 49 | F87: 50 | G87: 2027-01-22 | H87: 0 | I87: 9 | J87: 22 | K87: 0 | L87: =IF(B87<$M$11,$N$13,-$L$37-SUM($L$39:L86)) -> 0 | M87: =ROUND(($M$10-SUM($L$39:L86))*(($M$15/(IF(ROUND(YEAR(G86)/4,0)-YEAR(G86)/4=0,366,365)))*I87)+($M$10-SUM($L$39:L86))*(($M$15/(IF(ROUND(YEAR(G87)/4,0)-YEAR(G87)/4=0,366,365)))*J87),2) -> 0 | N87: 0 | X87: х | Y87: х
A88: 0 | B88: =B87+1 -> 50 | F88: 51 | G88: 2027-02-22 | H88: 0 | I88: 9 | J88: 22 | K88: 0 | L88: =IF(B88<$M$11,$N$13,-$L$37-SUM($L$39:L87)) -> 0 | M88: =ROUND(($M$10-SUM($L$39:L87))*(($M$15/(IF(ROUND(YEAR(G87)/4,0)-YEAR(G87)/4=0,366,365)))*I88)+($M$10-SUM($L$39:L87))*(($M$15/(IF(ROUND(YEAR(G88)/4,0)-YEAR(G88)/4=0,366,365)))*J88),2) -> 0 | N88: 0 | X88: х | Y88: х
A89: 0 | B89: 51 | F89: 52 | G89: 2027-03-22 | H89: 0 | I89: 6 | J89: 22 | K89: 0 | L89: =IF(B89<$M$11,$N$13,-$L$37-SUM($L$39:L88)) -> 0 | M89: =ROUND(($M$10-SUM($L$39:L88))*(($M$15/(IF(ROUND(YEAR(G88)/4,0)-YEAR(G88)/4=0,366,365)))*I89)+($M$10-SUM($L$39:L88))*(($M$15/(IF(ROUND(YEAR(G89)/4,0)-YEAR(G89)/4=0,366,365)))*J89),2) -> 0 | N89: 0 | X89: х | Y89: х
A90: 0 | B90: 52 | F90: 53 | G90: 2027-04-22 | H90: 0 | I90: 9 | J90: 22 | K90: 0 | L90: =IF(B90<$M$11,$N$13,-$L$37-SUM($L$39:L89)) -> 0 | M90: =ROUND(($M$10-SUM($L$39:L89))*(($M$15/(IF(ROUND(YEAR(G89)/4,0)-YEAR(G89)/4=0,366,365)))*I90)+($M$10-SUM($L$39:L89))*(($M$15/(IF(ROUND(YEAR(G90)/4,0)-YEAR(G90)/4=0,366,365)))*J90),2) -> 0 | N90: 0 | X90: х | Y90: х
A91: 0 | B91: 53 | F91: 54 | G91: 2027-05-22 | H91: 0 | I91: 8 | J91: 22 | K91: 0 | L91: =IF(B91<$M$11,$N$13,-$L$37-SUM($L$39:L90)) -> 0 | M91: =ROUND(($M$10-SUM($L$39:L90))*(($M$15/(IF(ROUND(YEAR(G90)/4,0)-YEAR(G90)/4=0,366,365)))*I91)+($M$10-SUM($L$39:L90))*(($M$15/(IF(ROUND(YEAR(G91)/4,0)-YEAR(G91)/4=0,366,365)))*J91),2) -> 0 | N91: 0 | X91: х | Y91: х
A92: 0 | B92: 54 | F92: 55 | G92: 2027-06-22 | H92: 0 | I92: 9 | J92: 22 | K92: 0 | L92: =IF(B92<$M$11,$N$13,-$L$37-SUM($L$39:L91)) -> 0 | M92: =ROUND(($M$10-SUM($L$39:L91))*(($M$15/(IF(ROUND(YEAR(G91)/4,0)-YEAR(G91)/4=0,366,365)))*I92)+($M$10-SUM($L$39:L91))*(($M$15/(IF(ROUND(YEAR(G92)/4,0)-YEAR(G92)/4=0,366,365)))*J92),2) -> 0 | N92: 0 | X92: х | Y92: х
A93: 0 | B93: 55 | F93: 56 | G93: 2027-07-22 | H93: 0 | I93: 8 | J93: 22 | K93: 0 | L93: =IF(B93<$M$11,$N$13,-$L$37-SUM($L$39:L92)) -> 0 | M93: =ROUND(($M$10-SUM($L$39:L92))*(($M$15/(IF(ROUND(YEAR(G92)/4,0)-YEAR(G92)/4=0,366,365)))*I93)+($M$10-SUM($L$39:L92))*(($M$15/(IF(ROUND(YEAR(G93)/4,0)-YEAR(G93)/4=0,366,365)))*J93),2) -> 0 | N93: 0 | X93: х | Y93: х
A94: 0 | B94: 56 | F94: 57 | G94: 2027-08-22 | H94: 0 | I94: 9 | J94: 22 | K94: 0 | L94: =IF(B94<$M$11,$N$13,-$L$37-SUM($L$39:L93)) -> 0 | M94: =ROUND(($M$10-SUM($L$39:L93))*(($M$15/(IF(ROUND(YEAR(G93)/4,0)-YEAR(G93)/4=0,366,365)))*I94)+($M$10-SUM($L$39:L93))*(($M$15/(IF(ROUND(YEAR(G94)/4,0)-YEAR(G94)/4=0,366,365)))*J94),2) -> 0 | N94: 0 | X94: х | Y94: х
A95: 0 | B95: 57 | F95: 58 | G95: 2027-09-22 | H95: 0 | I95: 9 | J95: 22 | K95: 0 | L95: =IF(B95<$M$11,$N$13,-$L$37-SUM($L$39:L94)) -> 0 | M95: =ROUND(($M$10-SUM($L$39:L94))*(($M$15/(IF(ROUND(YEAR(G94)/4,0)-YEAR(G94)/4=0,366,365)))*I95)+($M$10-SUM($L$39:L94))*(($M$15/(IF(ROUND(YEAR(G95)/4,0)-YEAR(G95)/4=0,366,365)))*J95),2) -> 0 | N95: 0 | X95: х | Y95: х
A96: 0 | B96: 58 | F96: 59 | G96: 2027-10-22 | H96: 0 | I96: 8 | J96: 22 | K96: 0 | L96: =IF(B96<$M$11,$N$13,-$L$37-SUM($L$39:L95)) -> 0 | M96: =ROUND(($M$10-SUM($L$39:L95))*(($M$15/(IF(ROUND(YEAR(G95)/4,0)-YEAR(G95)/4=0,366,365)))*I96)+($M$10-SUM($L$39:L95))*(($M$15/(IF(ROUND(YEAR(G96)/4,0)-YEAR(G96)/4=0,366,365)))*J96),2) -> 0 | N96: 0 | X96: х | Y96: х
A97: 0 | B97: 59 | F97: 60 | G97: 2027-11-22 | H97: 0 | I97: 9 | J97: 22 | K97: 0 | L97: =IF(B97<$M$11,$N$13,-$L$37-SUM($L$39:L96)) -> 0 | M97: =ROUND(($M$10-SUM($L$39:L96))*(($M$15/(IF(ROUND(YEAR(G96)/4,0)-YEAR(G96)/4=0,366,365)))*I97)+($M$10-SUM($L$39:L96))*(($M$15/(IF(ROUND(YEAR(G97)/4,0)-YEAR(G97)/4=0,366,365)))*J97),2) -> 0 | N97: 0 | X97: х | Y97: х
A98: 0 | B98: 60 | F98: 61 | G98: 2027-12-22 | H98: 0 | I98: 8 | J98: 22 | K98: 0 | L98: =IF(B98<$M$11,$N$13,-$L$37-SUM($L$39:L97)) -> 0 | M98: =ROUND(($M$10-SUM($L$39:L97))*(($M$15/(IF(ROUND(YEAR(G97)/4,0)-YEAR(G97)/4=0,366,365)))*I98)+($M$10-SUM($L$39:L97))*(($M$15/(IF(ROUND(YEAR(G98)/4,0)-YEAR(G98)/4=0,366,365)))*J98),2) -> 0 | N98: 0 | Q98: =IF(B98<$M$11,$M$10*$M$18,0) -> 0 | V98: =IF(B98<$M$11,$M$8*$M$21,0) -> 0 | X98: х | Y98: х
A99: 0 | B99: 61 | F99: 62 | G99: 2028-01-22 | H99: 0 | I99: 9 | J99: 22 | K99: 0 | L99: =IF(B99<$M$11,$N$13,-$L$37-SUM($L$39:L98)) -> 0 | M99: =ROUND(($M$10-SUM($L$39:L98))*(($M$15/(IF(ROUND(YEAR(G98)/4,0)-YEAR(G98)/4=0,366,365)))*I99)+($M$10-SUM($L$39:L98))*(($M$15/(IF(ROUND(YEAR(G99)/4,0)-YEAR(G99)/4=0,366,365)))*J99),2) -> 0 | N99: 0 | X99: х | Y99: х
A100: 0 | B100: 62 | F100: 63 | G100: 2028-02-22 | H100: 0 | I100: 9 | J100: 22 | K100: 0 | L100: =IF(B100<$M$11,$N$13,-$L$37-SUM($L$39:L99)) -> 0 | M100: =ROUND(($M$10-SUM($L$39:L99))*(($M$15/(IF(ROUND(YEAR(G99)/4,0)-YEAR(G99)/4=0,366,365)))*I100)+($M$10-SUM($L$39:L99))*(($M$15/(IF(ROUND(YEAR(G100)/4,0)-YEAR(G100)/4=0,366,365)))*J100),2) -> 0 | N100: 0 | X100: х | Y100: х
A101: 0 | B101: 63 | F101: 64 | G101: 2028-03-22 | H101: 0 | I101: 7 | J101: 22 | K101: 0 | L101: =IF(B101<$M$11,$N$13,-$L$37-SUM($L$39:L100)) -> 0 | M101: =ROUND(($M$10-SUM($L$39:L100))*(($M$15/(IF(ROUND(YEAR(G100)/4,0)-YEAR(G100)/4=0,366,365)))*I101)+($M$10-SUM($L$39:L100))*(($M$15/(IF(ROUND(YEAR(G101)/4,0)-YEAR(G101)/4=0,366,365)))*J101),2) -> 0 | N101: 0 | X101: х | Y101: х
A102: 0 | B102: 64 | F102: 65 | G102: 2028-04-22 | H102: 0 | I102: 9 | J102: 22 | K102: 0 | L102: =IF(B102<$M$11,$N$13,-$L$37-SUM($L$39:L101)) -> 0 | M102: =ROUND(($M$10-SUM($L$39:L101))*(($M$15/(IF(ROUND(YEAR(G101)/4,0)-YEAR(G101)/4=0,366,365)))*I102)+($M$10-SUM($L$39:L101))*(($M$15/(IF(ROUND(YEAR(G102)/4,0)-YEAR(G102)/4=0,366,365)))*J102),2) -> 0 | N102: 0 | X102: х | Y102: х
A103: =IF(B103<=$M$11,1,0) -> 0 | B103: 65 | F103: 66 | G103: 2028-05-22 | H103: 0 | I103: 8 | J103: 22 | K103: 0 | L103: =IF(B103<$M$11,$N$13,-$L$37-SUM($L$39:L102)) -> 0 | M103: =ROUND(($M$10-SUM($L$39:L102))*(($M$15/(IF(ROUND(YEAR(G102)/4,0)-YEAR(G102)/4=0,366,365)))*I103)+($M$10-SUM($L$39:L102))*(($M$15/(IF(ROUND(YEAR(G103)/4,0)-YEAR(G103)/4=0,366,365)))*J103),2) -> 0 | N103: =IF(A103=1,IF(AND(YEAR($M$12)=YEAR(EDATE(G102,1)),MONTH($M$12)=MONTH(EDATE(G102,1))),$Q$17-$Q$42,$Q$17),0) -> 0 | X103: х | Y103: х
A104: 0 | B104: =B103+1 -> 66 | F104: 67 | G104: 2028-06-22 | H104: =IF(A104=1,G104-G103,0) -> 0 | I104: 9 | J104: 22 | K104: 0 | L104: =IF(B104<$M$11,$N$13,-$L$37-SUM($L$39:L103)) -> 0 | M104: =ROUND(($M$10-SUM($L$39:L103))*(($M$15/(IF(ROUND(YEAR(G103)/4,0)-YEAR(G103)/4=0,366,365)))*I104)+($M$10-SUM($L$39:L103))*(($M$15/(IF(ROUND(YEAR(G104)/4,0)-YEAR(G104)/4=0,366,365)))*J104),2) -> 0 | N104: 0 | X104: х | Y104: х
A105: 0 | B105: 67 | F105: 68 | G105: =IF(AND(YEAR($M$12)=YEAR(EDATE(G104,1)),MONTH($M$12)=MONTH(EDATE(G104,1))),$M$12,EDATE(G104,1)) -> 2028-07-22 | H105: 0 | I105: =EOMONTH(G104,0)-G104 -> 8 | J105: =G105-EOMONTH(G104,0) -> 22 | K105: 0 | L105: =IF(B105<$M$11,$N$13,-$L$37-SUM($L$39:L104)) -> 0 | M105: =ROUND(($M$10-SUM($L$39:L104))*(($M$15/(IF(ROUND(YEAR(G104)/4,0)-YEAR(G104)/4=0,366,365)))*I105)+($M$10-SUM($L$39:L104))*(($M$15/(IF(ROUND(YEAR(G105)/4,0)-YEAR(G105)/4=0,366,365)))*J105),2) -> 0 | N105: 0 | X105: х | Y105: х
A106: 0 | B106: 68 | F106: 69 | G106: 2028-08-22 | H106: 0 | I106: 9 | J106: 22 | K106: 0 | L106: =IF(B106<$M$11,$N$13,-$L$37-SUM($L$39:L105)) -> 0 | M106: =ROUND(($M$10-SUM($L$39:L105))*(($M$15/(IF(ROUND(YEAR(G105)/4,0)-YEAR(G105)/4=0,366,365)))*I106)+($M$10-SUM($L$39:L105))*(($M$15/(IF(ROUND(YEAR(G106)/4,0)-YEAR(G106)/4=0,366,365)))*J106),2) -> 0 | N106: 0 | X106: х | Y106: х
A107: 0 | B107: 69 | F107: 70 | G107: 2028-09-22 | H107: 0 | I107: 9 | J107: 22 | K107: 0 | L107: =IF(B107<$M$11,$N$13,-$L$37-SUM($L$39:L106)) -> 0 | M107: =ROUND(($M$10-SUM($L$39:L106))*(($M$15/(IF(ROUND(YEAR(G106)/4,0)-YEAR(G106)/4=0,366,365)))*I107)+($M$10-SUM($L$39:L106))*(($M$15/(IF(ROUND(YEAR(G107)/4,0)-YEAR(G107)/4=0,366,365)))*J107),2) -> 0 | N107: 0 | X107: х | Y107: х
A108: 0 | B108: 70 | F108: 71 | G108: 2028-10-22 | H108: 0 | I108: 8 | J108: 22 | K108: 0 | L108: =IF(B108<$M$11,$N$13,-$L$37-SUM($L$39:L107)) -> 0 | M108: =ROUND(($M$10-SUM($L$39:L107))*(($M$15/(IF(ROUND(YEAR(G107)/4,0)-YEAR(G107)/4=0,366,365)))*I108)+($M$10-SUM($L$39:L107))*(($M$15/(IF(ROUND(YEAR(G108)/4,0)-YEAR(G108)/4=0,366,365)))*J108),2) -> 0 | N108: 0 | X108: х | Y108: х
A109: 0 | B109: 71 | F109: 72 | G109: 2028-11-22 | H109: 0 | I109: 9 | J109: 22 | K109: 0 | L109: =IF(B109<$M$11,$N$13,-$L$37-SUM($L$39:L108)) -> 0 | M109: =ROUND(($M$10-SUM($L$39:L108))*(($M$15/(IF(ROUND(YEAR(G108)/4,0)-YEAR(G108)/4=0,366,365)))*I109)+($M$10-SUM($L$39:L108))*(($M$15/(IF(ROUND(YEAR(G109)/4,0)-YEAR(G109)/4=0,366,365)))*J109),2) -> 0 | N109: 0 | X109: х | Y109: х
A110: 0 | B110: 72 | F110: 73 | G110: 2028-12-22 | H110: 0 | I110: 8 | J110: 22 | K110: 0 | L110: =IF(B110<$M$11,$N$13,-$L$37-SUM($L$39:L109)) -> 0 | M110: =ROUND(($M$10-SUM($L$39:L109))*(($M$15/(IF(ROUND(YEAR(G109)/4,0)-YEAR(G109)/4=0,366,365)))*I110)+($M$10-SUM($L$39:L109))*(($M$15/(IF(ROUND(YEAR(G110)/4,0)-YEAR(G110)/4=0,366,365)))*J110),2) -> 0 | N110: 0 | X110: х | Y110: х
A111: 1 | F111: Усього | G111: х | H111: =SUM(H39:H74) -> 365 | K111: =SUM(K39:K110) -> 108386.42 | L111: =SUM(L39:L110) -> 100000 | M111: =SUM(M39:M110) -> 8386.42 | N111: =SUM(N39:N110) -> 0 | O111: =SUM(O37:O110) -> 0 | P111: =SUM(P37:P110) -> 0 | Q111: 0 | R111: 0 | S111: 0 | T111: 0 | U111: 0 | V111: 0 | W111: 150 | X111: =XIRR(K37:K110,G37:G110) -> 0.1698952258 | Y111: =SUM(L111:W111) -> 108536.42
A112: 1 | B112: 0 | C112: комісія
A113: 1 | B113: 0.015 | C113: комісія
A114: 1 | B114: 0.02 | C114: комісія | F114: Загальні витрати за кредитом (проценти за користуваннґ кредитом, комісії та інші обов'язкові платежі за додаткові та супутні послуги кредитодавця,кредитного посередника (за наявності) та третії осіб, пов'язані з отриманням, обслуговуванням та поверненням кредиту), грн. | S114: =SUBTOTAL(9,M111:W111) -> 8536.42
A115: 1 | B115: гривня | C115: ставка по депозиту (щомісячна виплата %%) | F115: Орієнтовна загальна вартість кредиту для споживача за весь строк користування кредитом (у т.ч. тіло кредиту, відсотки, комісії та інші платежі), грн. | S115: =Y111 -> 108536.42
A116: 1 | B116: =C116%+2%+0.7% -> 0.097 | C116: 7 | D116: 3 міс | F116: Сума платежу за розрахунковий період, грн. | S116: =K39 -> 9650.44
A117: 1 | B117: =C117%+2%+0.7% -> 0.102 | C117: 7.5 | D117: 6 міс | F117: Орієнтовна реальна річна процентна ставка, % річних | S117: =X111 -> 0.1698952258
A118: 1 | B118: 0.107 | C118: 8 | D118: 9 міс
A119: 1 | B119: 0.112 | C119: 8.5 | D119: 12 міс | F119: Застереження: наведені обчислення орієнтовної реальної річної процентної ставки та орієнтовної загальної вартості кредиту для споживача є репрезентативними та базуються на обраних споживачем умовах кредитування, викладених вище, і на припущенні, що договір про споживчий кредит залишатиметься дійсним протягом погодженого строку, а кредитодавець і споживач виконають свої обов’язки на умовах та у строки, визначені в договорі.
A120: 1 | B120: 0.117 | C120: 9 | D120: 18 міс | F120: Орієнтовна реальна річна процентна ставка обчислена на основі припущення, що процентна ставка та інші платежі за послуги кредитодавця залишатимуться незмінними та застосовуватимуться протягом строку дії договору про споживчий кредит. Орієнтовна реальна річна процентна ставка обчислена з використанням фінансової функції ЧИСТВНДОХ програмного продукту Microsoft Excel.
A121: 1 | B121: 3 | F121: Застереження: використання інших способів надання кредиту та/або зміна інших вищезазначених умов кредитування можуть мати наслідком застосування іншої орієнтовної реальної річної процентної ставки та орієнтовної загальної вартості кредиту для споживача.
B122: 6
B123: 9
B124: 12 | F124: Застереження: процентна ставка по кредиту визначається залежно від умов вкладу: валюти, процентної ставки, строку. Процентна ставка по кредиту обчислена на основі припущення, що вклад котрий береться в заставу розміщений на умовах з щомісячною виплатою відсотків.
B125: 18
B127: гривня | F127: в кінці терміну | H127: 0
B128: долар США | F128: щомісяця | H128: =M10/M11 -> 8333.333333
B129: євро
B131: Базова ставка, що дадається до депозитної згідно протоколу КУАП #33 від 13.09.2021 р.
B132: 10.3 | C132: %
B135: долар США | C135: ставка по депозиту
A136: 3 міс | B136: =(C136+$B$132+1+(C136*0.1))/100 -> 0.124 | C136: 1
A137: 6 міс | B137: =(C137+$B$132+1+(C137*0.1))/100 -> 0.1273 | C137: 1.3
A138: 9 міс | B138: 0.1295 | C138: 1.5
A139: 12 міс | B139: 0.1317 | C139: 1.7
A140: 18 міс | B140: 0.1317 | C140: 1.7
B142: євро | C142: ставка по депозиту
A143: 3 міс | B143: =(C143+$B$132+1+(C143*0.1))/100 -> 0.124 | C143: 1
A144: 6 міс | B144: =(C144+$B$132+1+(C144*0.1))/100 -> 0.1273 | C144: 1.3
A145: 9 міс | B145: 0.1295 | C145: 1.5
A146: 12 міс | B146: 0.1317 | C146: 1.7
A147: 18 міс | B147: 0.1317 | C147: 1.7
